Cogmind - Beta 16 @@@ ROGUE MODE // 2025.10.22 @ 18:08:15 Player: mat Result: Destroyed by G-34 Mercenary with Small Laser Performance ------------- Evolutions (1) 500 Regions Visited (2) 400 Robots Destroyed (10) 50 Value Destroyed (250) 250 Prototype IDs (0) 0 Alien Tech Used (0) 0 Bonus (0) 0 TOTAL SCORE: 1200 Bonus ------- None Cogmind --------- Core Integrity 0/400 Matter 270/300 Energy 100/100 System Corruption 0% Temperature Cool (6) Movement Core (700) Ox13 Location -9/Materials Parts ------- > --- POWER (1) -------- (None) > --- PROPULSION (3) --- (None) > --- UTILITY (3) ------ High-capacity Storage Unit > --- WEAPON (2) ------- (None) > --- INVENTORY (20) --- Heat Sink Small Storage Unit Peak State ------------ > --- POWER ------------ Light Ion Engine > --- PROPULSION ------- Light Treads Light Treads > --- UTILITY ---------- High-capacity Storage Unit Core Shielding Light Armor Plating > --- WEAPON ----------- Assault Rifle Light Assault Rifle > --- INVENTORY -------- Light Ion Engine Heat Sink Small Storage Unit Light Cannon [Rating: 8] Favorites ----------- Power Light Ion Engine Engine Light Ion Engine Propulsion Light Treads Treads Light Treads Utility High-capacity Storage Unit Storage High-capacity Storage Unit Protection Light Armor Plating Weapon Light Assault Rifle Ballistic Gun Light Assault Rifle Ballistic Cannon Light Cannon Build | -11 -10 -9 ------- Run | Yrd Mat Mat Slots Evolved 2 | . . 2 Power . | . . . Propulsion 1 | . . 1 Utility 1 | . . 1 Weapon . | . . . Parts Attached 13 | 7 2 4 Power 3 | 1 . 2 Engine 3 | 1 . 2 Core . | . . . Reactor . | . . . Propulsion 2 | 2 . . Treads 2 | 2 . . Leg . | . . . Wheel . | . . . Hover . | . . . Flight . | . . . Utility 4 | 1 2 1 Device . | . . . Storage 2 | 1 1 . Processor . | . . . Hackware . | . . . Protection 2 | . 1 1 Artifact . | . . . Weapon 4 | 3 . 1 Energy Gun . | . . . Energy Cannon . | . . . Ballistic Gun 3 | 3 . . Ballistic Cannon 1 | . . 1 Launcher . | . . . Special Weapon . | . . . Impact Weapon . | . . . Slashing Weapon . | . . . Piercing Weapon . | . . . Special Melee Weapon . | . . . Unidentified Prototypes . | . . . Parts Lost 10 | . . 10 Power 3 | . . 3 Propulsion 2 | . . 2 Utility 2 | . . 2 Weapon 3 | . . 3 Highest Loss Streak 10 | . . 10 To Critical Strikes . | . . . Average Backups 3 | 1 1 4 Power 1 | . 1 1 Propulsion . | . . . Utility 1 | . . 2 Weapon . | . . . Tool/Special . | . . . Unused Backups 1 | . . 1 Power . | . . . Propulsion . | . . . Utility 1 | . . 1 Weapon . | . . . Tool/Special . | . . . Average Slot Usage (%) 80 | . 92 73 Engine 11 | . 14 10 Treads 22 | . 28 19 Storage 12 | . 14 11 Protection 11 | . 7 14 Ballistic Gun 21 | . 28 18 Peak Build Rating 8 | 6 7 8 Average Rating 6 | 3 6 6 On Entrance 4 | . 6 7 Avg Prop Armor Cover (%) . | . . . Naked Turns . | . . . Heaviest Build 50 | 11 49 50 Greatest Support 40 | 40 40 40 Greatest Overweight (x) 14 | . 1 14 Average Overweight (x) . | . . 1 Largest Inventory Capacity 20 | 8 20 20 Average Capacity 16 | 6 12 20 Most Carried 5 | 5 4 5 Average Carried 3 | 2 1 4 Final Capacity 20 | 8 20 20 Final Carried 4 | 1 4 2 Class Distribution -------------------- 100% | Mutant Dominant Class ---------------- Mutant | -10/Materials Mutant | -9/Materials Resources | -11 -10 -9 ----------- Run | Yrd Mat Mat Matter Collected 423 | 261 75 87 Remotely . | . . . Salvage Created 243 | . 115 128 Parts 17 | . 7 10 Haulers Intercepted . | . . . Recyclers Shooed . | . . . Parts Field Recycled . | . . . Retrieved Matter . | . . . Parts Self-Destructed . | . . . Prevented . | . . . Parts Restored . | . . . Kills | -11 -10 -9 ------- Run | Yrd Mat Mat Combat Hostiles Destroyed 9 | . 3 6 Guns 7 | . 3 4 Cannons 1 | . . 1 AOE 1 | . . 1 Classes Destroyed 3 | . 2 1 Operator 1 | . 1 . Swarmer 3 | . . 3 Grunt 6 | . 3 3 Best Kill Streak 2 | . 1 2 Combat Bots Only 2 | . 1 2 Max Kills in Single Turn 1 | . 1 1 Gunslinging . | . . . Exploded 1 | . . 1 Melee . | . . . Uniques/NPCs Destroyed . | . . . Combat | -11 -10 -9 -------- Run | Yrd Mat Mat Hostile Shots Fired 154 | . 7 147 Missed 41 | . 1 40 Hits 113 | . 6 107 Projectile 113 | . 6 107 AOE 1 | . . 1 Critical Strikes 1 | . . 1 Damage Taken 1407 | . 68 1339 Core 440 | . 34 406 Absorbed by Shields . | . . . Redirected to Shielding 50 | . . 50 Core Remaining (%) 93 | 100 86 . Volleys Fired 42 | . 14 28 Largest 2 | . 2 2 Hottest 40 | . 40 40 Shots Fired 70 | . 28 42 Gun 56 | . 28 28 Cannon 14 | . . 14 Launcher . | . . . Special . | . . . Kinetic 70 | . 28 42 Thermal . | . . . Explosive . | . . . Electromagnetic . | . . . Robot Hit Streak 11 | . 4 11 Robot Miss Streak 2 | . 2 2 Penetration Max . | . . . Secondary Targets 1 | . . 1 Max Gunslinging Chain 1 | . . 1 Shots Hit Robots 48 | . 18 30 Core Hits 18 | . 9 9 Critical Kills . | . . . Critical Parts Destroyed . | . . . Critical Strikes 1 | . . 1 Blast 1 | . . 1 Melee Attacks . | . . . Impact . | . . . Slashing . | . . . Piercing . | . . . Sneak Attacks . | . . . Combat Hostiles . | . . . Follow-up Attacks . | . . . Damage Inflicted 604 | . 199 405 Guns 394 | . 199 195 Cannons 210 | . . 210 Explosions . | . . . Melee . | . . . Ramming . | . . . Kinetic 604 | . 199 405 Thermal . | . . . Explosive . | . . . Electromagnetic . | . . . Impact . | . . . Slashing . | . . . Piercing . | . . . Highest Corruption . | . . . Average Corruption . | . . . Corruption Purged . | . . . Corruption Blocked . | . . . Overload Shots . | . . . Overflow Damage . | . . . Projectiles . | . . . Explosions . | . . . Melee . | . . . Knockbacks 1 | . . 1 Impact . | . . . Kinetic 1 | . . 1 Secondary . | . . . Self-Inflicted Damage . | . . . Shots . | . . . Rammed . | . . . Targets Rammed . | . . . Kicked . | . . . Crushed . | . . . Highest Temperature 6 | . 6 6 Average Temperature 4 | . 5 4 Received Heat Transfer 483 | . 36 447 Siege Activations . | . . . Martial Activations . | . . . Shielding Activations . | . . . Robots Disrupted . | . . . Combat Hostiles . | . . . Robots Corrupted . | . . . Combat Hostiles . | . . . Parts Fried . | . . . Impact Corruptions . | . . . Robots Melted . | . . . Combat Hostiles . | . . . Parts Melted . | . . . Heat Transferred . | . . . Parts Sabotaged . | . . . Parts Stolen . | . . . Parts Stripped . | . . . Power Chain Reactions . | . . . Alert | -11 -10 -9 ------- Run | Yrd Mat Mat Maximum Alert Level . | . . . Low Security (%) 100 | 100 100 100 Level 1 . | . . . Level 2 . | . . . Level 3 . | . . . Level 4 . | . . . Level 5 . | . . . High Security . | . . . Max Security . | . . . Peak Influence 40 | . 30 40 Initial . | . . . Average 6 | . 9 5 Influence Increases 205 | . 75 130 Destroy 0b10 Robot/C 180 | . 60 120 Destroy 0b10 Robot/NC 5 | . 5 . Destroy Leader 20 | . 10 10 Influence Decreases 205 | . 75 130 Time Decay 155 | . 75 80 Lost Part 50 | . . 50 Squads Dispatched 1 | . 1 . Investigation . | . . . Extermination . | . . . Reinforcement 1 | . 1 . Assault . | . . . Garrison . | . . . Intercept . | . . . Searches Triggered . | . . . Construction Impeded . | . . . Haulers Reinforced . | . . . Active Scanning Responses . | . . . Cargo Convoy Interrupts . | . . . Stealth | -11 -10 -9 --------- Run | Yrd Mat Mat Distress Signals 1 | . . 1 Communications Jammed . | . . . Distress Signals . | . . . Times Spotted 19 | . 5 14 Peak Tracking Total 7 | . 2 7 Tactical Retreats . | . . . Traps | -11 -10 -9 ------- Run | Yrd Mat Mat Traps Triggered . | . . . Indirectly . | . . . Trap Hack Attempts . | . . . Triggered . | . . . Disarmed . | . . . Reprogrammed . | . . . Reused . | . . . Traps Extracted . | . . . Installed . | . . . Triggered . | . . . Machines | -11 -10 -9 ---------- Run | Yrd Mat Mat Machines Disabled . | . . . Max in Single Turn . | . . . Machines Repaired . | . . . Machines Dismantled . | . . . Machines Sabotaged . | . . . Overloaded Fab Kills . | . . . Hacking | -11 -10 -9 --------- Run | Yrd Mat Mat Machines Accessed . | . . . Terminals . | . . . Fabricators . | . . . Repair Stations . | . . . Recycling Units . | . . . Scanalyzers . | . . . Garrison Access . | . . . Total Hacks . | . . . Successful . | . . . Failed . | . . . Catastrophic . | . . . Database Lockouts . | . . . Manual . | . . . Terminals . | . . . Fabricators . | . . . Repair Stations . | . . . Recycling Units . | . . . Scanalyzers . | . . . Garrison Access . | . . . Terminal Hacks . | . . . Fabricator Hacks . | . . . Repair Station Hacks . | . . . Recycling Unit Hacks . | . . . Scanalyzer . | . . . Garrison Access Hacks . | . . . Unauthorized Hacks . | . . . Terminals . | . . . Fabricators . | . . . Repair Stations . | . . . Recycling Units . | . . . Scanalyzers . | . . . Garrison Access . | . . . Data Cores Recovered . | . . . Used . | . . . Hacking Detections . | . . . Full Trace Events . | . . . Feedback Events . | . . . Feedback Blocked . | . . . Robot Schematics Acquired . | . . . Robots Built . | . . . Authchips . | . . . Time . | . . . Total Robot Build Rating . | . . . Part Schematics Acquired . | . . . Parts Built . | . . . Authchips . | . . . Time . | . . . Total Part Build Rating . | . . . Part Studies Acquired . | . . . Parts Repaired . | . . . Time . | . . . Parts Recycled . | . . . Recycled Matter . | . . . Retrieved Matter . | . . . Retrieved Components . | . . . Parts Scanalyzed . | . . . Part Schematics Acquired . | . . . Parts Damaged . | . . . Bothacking | -11 -10 -9 ------------ Run | Yrd Mat Mat Used RIF Installer . | . . . Robots Hacked . | . . . Non-combat . | . . . Combat . | . . . Robot Hacks Applied . | . . . Relay Couplers Released . | . . . Fabnet Peak Effective % . | . . . Robots Rewired . | . . . Allies Hacked . | . . . Hacks Repelled . | . . . Allies | -11 -10 -9 -------- Run | Yrd Mat Mat Total Allies . | . . . Largest Group . | . . . Highest-Rated Group . | . . . Highest-Rated Ally . | . . . Total Orders . | . . . Ally Attacks . | . . . Total Damage . | . . . Kills . | . . . Allies Corrupted . | . . . Allies Melted . | . . . Intel | -11 -10 -9 ------- Run | Yrd Mat Mat Active Infowar (turns) . | . . . Robot Analysis Total . | . . . Derelict Logs Recovered . | . . . Drone Launches . | . . . Drone Recoveries . | . . . Exploration | -11 -10 -9 ------------- Run | Yrd Mat Mat Turns Passed 768 | 55 249 464 Spaces Moved 294 | 49 100 145 Core 39 | 32 . 7 Treads 255 | 17 100 138 Legs . | . . . Wheels . | . . . Hover . | . . . Flight . | . . . Fastest Speed 50 | 50 160 240 Average Speed 210 | 88 192 264 Slowest Speed 750 | 160 240 750 Overloaded Moves . | . . . Propulsion Burnouts . | . . . Robots Hopped . | . . . Potential Cave-ins . | . . . Cave-ins Triggered . | . . . Exploration Rate (%) 18 | 3 32 19 Regions Visited 2 Branch Regions . Pre-discovered Areas . | . . . Known Exits Taken . | . . . Unknown Exits Taken 2 | 1 1 . Scrap Searched . | . . . Spaces Dug . | . . . Terrain Destroyed . | . . . Melee . | . . . Projectile . | . . . AOE . | . . . Terrain Rammed . | . . . Walls Destroyed . | . . . Machines Disabled . | . . . Actions | -11 -10 -9 --------- Run | Yrd Mat Mat Total 383 | 61 132 190 Wait 24 | . 13 11 Move 292 | 48 99 145 Hop . | . . . Pick Up 11 | 5 4 2 Fast Attach 2 | 2 . . Attach 9 | 4 1 4 Detach . | . . . Swap 2 | 1 1 . Drop 1 | 1 . . Fire 42 | . 14 28 Melee . | . . . Ram . | . . . Kick . | . . . Crush . | . . . Escape Stasis . | . . . Rewire . | . . . Trap . | . . . Miscellaneous . | . . . Route ------- -11/Scrapyard -10/Materials -9/Materials History --------- Turn | Location | Event 7 | -11/Scrapyard | Discovered new exit (range 15) 56 | -11/Scrapyard | Entered Materials 250 | -10/Materials | Discovered new exit (range 7) 305 | -10/Materials | Build established: Mutant 305 | -10/Materials | Entered another Materials area 305 | -9/Materials | Evolved 2 slots: Propulsion x1, Utility x1 724 | -9/Materials | Core integrity fell below 50% 756 | -9/Materials | Core integrity fell below 20% 763 | -9/Materials | Lost 10 parts (3p2n2u3w) 769 | -9/Materials | Destroyed by G-34 Mercenary with Small Laser Last Messages --------------- K-01 Serf collects debris. Lgt. Treads destroyed. Acquired 13 matter. U-05 Engineer builds a Wall. U-05 Engineer builds a Door. G-34 Mercenary suffers critical hit (Burn). Lgt. Ion Engine destroyed. The unstable cave ceiling collapses. U-05 Engineer lays Concrete. Core Shielding destroyed. U-05 Engineer builds a Wall. U-05 Engineer lays Concrete. U-05 Engineer builds a Wall. K-01 Serf collects debris. The unstable cave ceiling collapses. R-06 Scavenger collects Flight Unit. The unstable cave ceiling collapses. K-01 Serf collects debris. Critical hit (Burn: +37). Electrolysis Chamber disabled. Map ----- +----------------------------------------------------+ | ?????????????????????????????????????????????????? | | ?????????????????????????????????????????????????? | | ?????????????????????????????????????????????????? | | ?????????????????????????????????????????????????? | | ?????????????????????????????????????????????????? | | ?????????????????????????????????????????????????? | | ?????????????????????????????????????????????????? | | ?????????????????????????????????????????????????? | | ?????????????????????????????????????????????????? | | ?????????????????????????????????????????????????? | | ?????????????????????????????????????????????????? | | ?????????????????????????????????????????????????? | | ?????????????????????????????????????????????????? | | ?????????????????????????????????????????????????? | | ?????????????????????????????????????????????????? | | ?????????????????????????????????????????????????? | | ????????????????????#????????????????????????????? | | ???????????????????? ???????????????????????????? | | ????????????????????# ???????????????????????????? | | ????????????????????# ??#######??????????????????? | | ????????????????????# ??# #??????????????????? | | ????????????????????# ??# """ #??????????????????? | | ????????????????????# ### """ #? ????????????????? | | ???????????????????? + """ # ???????????????? | | ????????????????????# # + ???????????????? | | ????????????????????# #@""" #??????????????????? | | ????????????????????# # "" #??????????????????? | | ????????????????????# # """ #??????????????????? | | ????????????????????# #Yg #??????????????????? | | ???################## # #??????????????????? | | ???# # =# g #??????????????????? | | ????? # ; u #??????????????????? | | ????? """ # # ##+#??????????????????? | | ?????? """"" + ## # #??????????????????? | | ?????? """"" # # # # #??????????????????? | | ???????""""" # = # #??????????????????? | | ??????? """ # # #??????????????????? | | ??????? # # #??????????????????? | | ???????####### # ????????????????? | | ?????????????# # = # ### ?????????????? | | ?????????????# / ## #???? ????????????? | | ?????????????# # " [ ## #??????????????????? | | ?????????????# # #? #??????????????????? | | ?????????????# ### ####? #??????????????????? | | ?????????????# # #????????????????????????? | | ?????????????# # #????????????????????????? | | ?????????????# !#% """#????????????????????????? | | ?????????????# !=+%[ """#????????????????????????? | | ???########### =# """#????????????????????????? | | ???# # # #????????????????????????? | +----------------------------------------------------+ Best States ------------- Heat Dissipation 28 Energy Generation 10 Energy Capacity 250 Matter Stores 300 Matter Capacity 300 Sight Range 16 Terrain Scan Density 10 Armor Coverage 150 Core Shielding 20 Evasion (%) 50 Recoil Reduction 2 Item Schematics ----------------- None Robot Schematics ------------------ None Fabricated ------------ Nothing Repaired ---------- Nothing Studied --------- None Alien Tech Used ----------------- None Achievements -------------- None Challenges ------------ None Game ------ Seed ThermalReactionMaul Manual? 0 Play Time 00:09:13 Cumulative 138.0 hours Start 2025.10.22 @ 18:02:00 End 2025.10.22 @ 18:08:15 Sessions 1 Manual Loads 0 Difficulty Rogue Special Mode None Game No. 216 Rogue 214 Adventurer 2 Explorer 0 Win Type - Total 1 Types 1/0/0/0/0/0/0/0/0/0 Lore% 31 Gallery% 43 Achievement% 27 Wizard Run 0 Options --------- Layout 1 ASCII 0 Keyboard 0 Movement Mouse Keybinds 0 Fullscreen 1 Font 24/Smallcaps Map View 50x35 Zoom Use 0% Tactical HUD 0 Map Filters NONE Filters NONE Steam 1 RUN: 4b3807ee-8b6c-4e05-a0eb-0c1853164cf7